fUSD/lending_fUSD_20241105
["ID","MTS","AMOUNT","RATE_DAILY","PERIOD"]
[341325782,1730803843587,-31493.3139,0.0002978,2]
[341325783,1730803843597,-333.80913545,0.0002978,2]
[341325784,1730803843606,-398.0,0.000298,14]
[341325785,1730803843615,-150.0,0.00029817,2]
[341325786,1730803843624,-150.0,0.00029821,2]
[341325787,1730803843633,-1500.0,0.00029843,2]
[341325788,1730803843643,-606.8004162,0.00029869,2]
[341325789,1730803843653,-561.50968961,0.00029869,2]
[341325790,1730803843662,-500.0,0.00029873,5]
[341325791,1730803843671,-505.93082385,0.00029873,5]
[341325792,1730803843681,-150.0,0.00029875,2]
[341325793,1730803843690,-200.0,0.00029879,2]
[341325794,1730803843699,-200.0,0.00029879,2]
[341325795,1730803843709,-200.0,0.00029879,2]
[341325796,1730803843718,-200.0,0.00029879,2]
[341325797,1730803843727,-199.0,0.00029879,2]
[341325798,1730803843736,-400.0,0.00029879,10]
[341325799,1730803843745,-400.0,0.00029879,10]
[341325800,1730803843755,-425.66266224,0.00029879,10]
[341325801,1730803843764,-529.26752679,0.00029879,2]
[341325802,1730803843773,-529.26752679,0.00029879,2]
[341325803,1730803843782,-529.26752679,0.00029879,2]
[341325804,1730803843792,-529.26752679,0.00029879,2]
[341325805,1730803843801,-529.26752679,0.00029879,2]
[341325806,1730803843988,-529.26752679,0.00029879,2]
[341325807,1730803843997,-529.26752679,0.00029879,2]
[341325808,1730803844007,-529.26752679,0.00029879,2]
[341325809,1730803844016,-529.26752679,0.00029879,2]
[341325810,1730803844026,-529.26752679,0.00029879,2]
[341325811,1730803844035,-529.26752679,0.00029879,2]
[341325812,1730803844045,-529.26752679,0.00029879,2]
[341325813,1730803844055,-529.26752679,0.00029879,2]
[341325815,1730803844064,-529.26752679,0.00029879,2]
[341325817,1730803844073,-529.26752679,0.00029879,2]
[341325818,1730803844083,-381.94333382,0.00029879,2]
[341325819,1730803844092,-500.0,0.00029879,2]
[341325820,1730803844102,-500.0,0.00029879,2]
[341325821,1730803844111,-529.26752679,0.00029879,2]
[341325822,1730803844121,-753.19484238,0.00029879,2]
[341325823,1730803844130,-753.19484238,0.00029879,2]
[341325824,1730803844139,-753.19484238,0.00029879,2]
[341325825,1730803844149,-753.19484238,0.00029879,2]
[341325826,1730803844158,-753.19484238,0.00029879,2]
[341325827,1730803844168,-753.19484238,0.00029879,2]
[341325828,1730803844179,-753.19484238,0.00029879,2]
[341325829,1730803844190,-753.19484238,0.00029879,2]
[341325830,1730803844200,-755.70549186,0.00029879,2]
[341325831,1730803844210,-755.70549186,0.00029879,2]
[341325832,1730803844221,-755.70549186,0.00029879,2]
[341325833,1730803844230,-755.70549186,0.00029879,2]
[341325834,1730803844240,-755.70549186,0.00029879,2]
[341325835,1730803844250,-1000.0,0.00029879,30]
[341325836,1730803844259,-380.0,0.0002988,5]
[341325837,1730803844268,-200441.58551766,0.0002988,2]
[341325838,1730803844292,-10012.13958475,0.0002988,2]
[341325843,1730803846430,-602.98,0.00026989,2]
[341325844,1730803846440,-602.98,0.00029253,2]
[341325845,1730803846450,-145184.0357308,0.0002988,2]
[341325846,1730803846625,-1781.04215477,0.0002988,2]
[341325848,1730804029408,157.06,0.00015342,2]
[341325849,1730804067497,-202.79668868,0.00023,2]
[341325850,1730804074719,-178.4103981,0.0002876,2]
[341325851,1730804074742,-23900.0,0.00028813,2]
[341325852,1730804074764,-266.16,0.00028837,2]
[341325853,1730804074787,-169.73,0.0002886,2]
[341325854,1730804074808,-417.38,0.00028944,2]
[341325855,1730804074831,-200.0,0.00028949,7]
[341325856,1730804074853,-158.2,0.00029036,30]
[341325857,1730804074875,-200.0,0.000293,10]
[341325858,1730804074896,-500.0,0.000294,10]
[341325859,1730804074916,-700.0,0.000295,10]
[341325860,1730804074938,-1000.0,0.000296,10]
[341325861,1730804074958,-205.0,0.0002961,2]
[341325862,1730804074978,-850.0,0.0002968,2]
[341325863,1730804074999,-2500.0,0.0002968,2]
[341325864,1730804075020,-14052.32291322,0.0002968,2]
[341325865,1730804080317,150.0,0.00018107,2]
[341325867,1730804187692,-767.41,0.00028877,2]
[341325868,1730804187713,-154.14,0.00028888,2]
[341325869,1730804187734,-44428.45,0.00029,2]
[341325870,1730804281302,300.0,0.00019725,2]
[341325871,1730804282068,420.0,0.00021484,2]
[341325872,1730804282822,587.0,0.00023401,2]
[341325873,1730804342517,300.0,0.00019725,2]
[341325874,1730804343262,420.0,0.00021484,2]
[341325875,1730804344053,587.0,0.00023401,2]
[341325877,1730804489803,1739.0,0.000197,2]
[341325878,1730804490760,1565.0,0.000197,2]
[341325879,1730804600536,1082.0,0.00025,2]
[341325880,1730804646680,154.87,0.00015342,2]
[341325943,1730804963220,250.0,0.00021,2]
[341325944,1730804964289,300.0,0.00023,2]
[341325945,1730804965360,350.0,0.00025,2]
[341325947,1730805031641,-603.67,0.0002577,2]
[341325948,1730805031651,-97.59254607,0.00027145,2]
[341325949,1730805031663,-62.45957193,0.00027145,2]
[341325950,1730805031673,-250.0,0.00027639,2]
[341325951,1730805031682,-417.38,0.0002767,2]
[341325952,1730805031693,-1000.0,0.00027677,2]
[341325953,1730805031702,-2104.34228072,0.0002774,2]
[341325954,1730805031714,-4200.97833986,0.0002774,2]
[341325955,1730805031726,-8413.5871555,0.0002774,2]
[341325956,1730805031747,-505.72485752,0.0002774,2]
[341325957,1730805031915,-1054.34457799,0.0002774,2]
[341325958,1730805031927,-3260.31394988,0.0002774,2]
[341325969,1730805037777,-300.0,0.0002774,2]
[341325975,1730805039610,-2242.59366376,0.0002774,2]
[341325976,1730805039650,-366.48,0.0002774,2]
[341325978,1730805039908,-1451.63517477,0.0002774,2]
[341325979,1730805039918,-266.31,0.00027759,2]
[341325980,1730805039927,-169.73,0.00027829,2]
[341325981,1730805039938,-169.88,0.00027941,120]
[341325982,1730805039949,-1590.56,0.00028,2]
[341325983,1730805039958,-1609.77962645,0.00028,2]
[341325984,1730805039967,-158.22,0.00028002,30]
[341325985,1730805039978,-603.67,0.00028033,2]
[341325986,1730805039987,-167.81,0.00028502,2]
[341325987,1730805039997,-155.96,0.00028648,2]
[341325988,1730805040006,-155.96,0.00028671,2]
[341325989,1730805040016,-155.96,0.00028695,2]
[341325990,1730805040025,-155.96,0.00028719,2]
[341325991,1730805040034,-155.96,0.00028743,2]
[341325992,1730805040043,-155.96,0.00028767,2]
[341325993,1730805040053,-155.96,0.00028791,2]
[341325994,1730805040063,-300.0,0.000288,10]
[341325995,1730805040073,-155.96,0.00028815,2]
[341325996,1730805040083,-155.96,0.00028838,2]
[341325997,1730805040091,-155.96,0.00028862,2]
[341325998,1730805040100,-1658.0,0.00028877,2]
[341325999,1730805040109,-155.96,0.00028886,2]
[341326000,1730805040119,-178.531,0.000289,21]
[341326001,1730805040128,-700.0,0.000289,10]
[341326002,1730805040136,-31814.05861488,0.000289,2]
[341326013,1730805042690,-27052.41348512,0.000289,2]
[341326014,1730805042700,-2500.0,0.000289,2]
[341326015,1730805042709,-155.96,0.0002891,2]
[341326016,1730805042719,-155.96,0.00028934,2]
[341326017,1730805042728,-645.91,0.00028989,3]
[341326018,1730805042737,-28274.69464645,0.0002899,3]
[341326019,1730805042746,-400.0,0.00028999,10]
[341326020,1730805042756,-400.0,0.00028999,10]
[341326021,1730805042765,-635.93850932,0.00028999,2]
[341326022,1730805042774,-635.93850932,0.00028999,2]
[341326023,1730805042784,-635.93850932,0.00028999,2]
[341326024,1730805042794,-635.93850932,0.00028999,2]
[341326025,1730805042803,-635.93850932,0.00028999,2]
[341326026,1730805042813,-635.93850932,0.00028999,2]
[341326027,1730805042823,-635.93850932,0.00028999,2]
[341326028,1730805042835,-635.93850932,0.00028999,2]
[341326029,1730805042846,-635.93850932,0.00028999,2]
[341326030,1730805042855,-635.93850932,0.00028999,2]
[341326031,1730805042864,-635.93850932,0.00028999,2]
[341326032,1730805042874,-635.93850932,0.00028999,2]
[341326033,1730805042883,-635.93850932,0.00028999,2]
[341326034,1730805042892,-500.0,0.00028999,2]
[341326035,1730805042902,-381.94333382,0.00028999,2]
[341326036,1730805042911,-635.93850932,0.00028999,2]
[341326037,1730805042920,-500.0,0.00028999,2]
[341326038,1730805042929,-635.93850932,0.00028999,2]
[341326039,1730805042941,-635.93850932,0.00028999,2]
[341326040,1730805042952,-635.93850932,0.00028999,2]
[341326041,1730805042961,-635.93850932,0.00028999,2]
[341326042,1730805042970,-635.93850932,0.00028999,2]
[341326043,1730805042980,-635.93850932,0.00028999,2]
[341326044,1730805042990,-635.93850932,0.00028999,2]
[341326045,1730805042999,-635.93850932,0.00028999,2]
[341326046,1730805043008,-635.93850932,0.00028999,2]
[341326047,1730805043018,-699.53236025,0.00028999,2]
[341326048,1730805043028,-699.53236025,0.00028999,2]
[341326049,1730805043038,-699.53236025,0.00028999,2]
[341326050,1730805043047,-699.53236025,0.00028999,2]
[341326051,1730805043056,-699.53236025,0.00028999,2]
[341326052,1730805043065,-699.53236025,0.00028999,2]
[341326053,1730805043074,-1000.0,0.00028999,30]
[341326054,1730805043085,-381.0,0.00029,5]
[341326055,1730805043094,-238744.73293729,0.00029,2]
[341326063,1730805045841,-1721.95,0.00029,2]
[341326069,1730805054713,150.0,0.00018123,2]
[341326070,1730805146779,155.91,0.00015342,2]
[341326412,1730805687116,158.85,0.00015342,2]
[341326476,1730805908309,152927.75874741,0.00016,2]
[341326479,1730805930244,1293.90441601,0.000101,2]
[341326480,1730805937215,1500.0,9e-05,2]
[341326496,1730806031044,952.05497628,0.000153,2]
[341326497,1730806040059,-50000.0,0.00043749,30]
[341326498,1730806040088,-50000.0,0.00043749,31]
[341326499,1730806040119,-50000.0,0.00043749,32]
[341326500,1730806040147,-50000.0,0.00043749,33]
[341326501,1730806040176,-50000.0,0.00043749,34]
[341326502,1730806040202,-3000.0,0.00043749,120]
[341326503,1730806040226,-10000.0,0.00043749,30]
[341326504,1730806040250,-1000.0,0.00043749,30]
[341326505,1730806040272,-1000.0,0.00043749,30]
[341326506,1730806040296,-1000.0,0.00043749,30]
[341326507,1730806040320,-1000.0,0.00043749,30]
[341326508,1730806040344,-1000.0,0.00043749,30]
[341326509,1730806040368,-1000.0,0.00043749,30]
[341326510,1730806040391,-1000.0,0.00043749,30]
[341326511,1730806040413,-1000.0,0.00043749,30]
[341326512,1730806040435,-1000.0,0.00043749,30]
[341326513,1730806040457,-1000.0,0.00043749,30]
[341326514,1730806040479,-467.57333022,0.00043749,30]
[341326515,1730806040502,-196.0,0.00043749,30]
[341326516,1730806040525,-196.0,0.00043749,30]
[341326517,1730806040551,-2075.42,0.00043749,30]
[341326518,1730806040575,-3829.62990736,0.00043749,60]
[341326519,1730806040599,-1007.03200883,0.00043749,30]
[341326520,1730806040622,-495.79868997,0.00043749,30]
[341326521,1730806040644,-370.54777288,0.00043749,30]
[341326522,1730806040666,-485.85921235,0.00043749,30]
[341326523,1730806040691,-850.0091258,0.00043749,30]
[341326524,1730806040713,-1000.0,0.00043749,30]
[341326525,1730806040735,-717.28357641,0.00043749,30]
[341326526,1730806040757,-257.307203,0.00043749,30]
[341326527,1730806040779,-79995.57144328,0.00043749,30]
[341326528,1730806040802,-832.59330313,0.00043749,30]
[341326529,1730806040825,-840.55667128,0.00043749,30]
[341326530,1730806040849,-905.3982062,0.00043749,30]
[341326531,1730806040872,-202.6469179,0.00043749,30]
[341326532,1730806040896,-935.35738193,0.00043749,30]
[341326533,1730806040920,-225.71890083,0.00043749,30]
[341326534,1730806040946,-341.87019247,0.00043749,30]
[341326535,1730806040969,-750.0,0.00043749,30]
[341326536,1730806040993,-860.36902036,0.00043749,30]
[341326537,1730806041016,-198.14878213,0.00043749,30]
[341326538,1730806041055,-259.53596779,0.00043749,30]
[341326539,1730806041097,-630.84257109,0.00043749,30]
[341326540,1730806041142,-1085.11642189,0.00043749,30]
[341326541,1730806041183,-293.78306756,0.00043749,30]
[341326542,1730806041223,-275.0,0.00043749,30]
[341326543,1730806041266,-12000.0,0.00043749,32]
[341326544,1730806041304,-395.58426454,0.00043749,30]
[341326545,1730806041342,-974.25564975,0.00043749,120]
[341326546,1730806041381,-601.10173477,0.00043749,30]
[341326547,1730806041417,-146530.0,0.00043749,120]
[341326548,1730806041450,-150.0,0.00043749,30]
[341326549,1730806041484,-191.0,0.00043749,30]
[341326550,1730806041520,-13678.41982389,0.00043749,120]
[341326551,1730806041558,-463.77457382,0.00043749,30]
[341326552,1730806041604,-10000.0,0.00043749,60]
[341326553,1730806041646,-14554.65250681,0.00043749,60]
[341326554,1730806041686,-5000.0,0.00043749,31]
[341326555,1730806041734,-2417.41796103,0.00043749,30]
[341326556,1730806041771,-967.35781682,0.00043749,120]
[341326557,1730806041808,-4349.7485,0.00043749,30]
[341326558,1730806041851,-344.21519441,0.00043749,120]
[341326559,1730806041887,-201.2,0.00043749,30]
[341326560,1730806041922,-201.2,0.00043749,30]
[341326561,1730806041958,-174.06502984,0.00043749,60]
[341326562,1730806041993,-181.45564354,0.00043749,120]
[341326563,1730806042028,-1144.47635795,0.00043749,120]
[341326564,1730806042063,-8440.0,0.00043749,120]
[341326565,1730806042101,-150.82136322,0.00043749,120]
[341326566,1730806042137,-153.52627777,0.00043749,120]
[341326567,1730806042174,-3000.0,0.00043749,117]
[341326568,1730806042210,-586.0,0.00043749,120]
[341326569,1730806042247,-963.28831346,0.00043749,120]
[341326570,1730806042284,-657.0,0.00043749,120]
[341326571,1730806042319,-1000.0,0.00043749,120]
[341326572,1730806042358,-1000.0,0.00043749,120]
[341326573,1730806042395,-1000.0,0.00043749,120]
[341326574,1730806042431,-6300.0,0.00043749,120]
[341326575,1730806042457,-4551.9132348,0.00043749,120]
[341326576,1730806042482,-362.04467418,0.00043749,60]
[341326578,1730806042507,-1000.0,0.00043749,120]
[341326579,1730806042798,-5360.10206482,0.00043749,120]
[341326580,1730806042837,-6134.65654858,0.00043749,120]
[341326581,1730806042864,-507.16302902,0.00043749,120]
[341326582,1730806042890,-796.0,0.00043749,30]
[341326583,1730806042916,-1003.0,0.00043749,30]
[341326584,1730806042942,-1003.0,0.00043749,30]
[341326585,1730806042966,-1003.0,0.00043749,30]
[341326586,1730806042992,-1003.0,0.00043749,30]
[341326587,1730806043016,-1003.0,0.00043749,30]
[341326588,1730806043042,-193.0,0.00043749,30]
[341326592,1730806064636,193.0,0.00043749,30]
[341326593,1730806065048,196.0,0.00043749,30]
[341326594,1730806085090,63013.1218603,0.00015,2]
[341326604,1730806137301,-158.22,0.00028085,30]
[341326605,1730806137343,-1002.0,0.0002899,30]
[341326606,1730806137384,-1000.0,0.00028999,30]
[341326607,1730806137427,-150.0,0.000298,120]
[341326608,1730806137473,-1287.79292051,0.0002988,30]
[341326609,1730806137515,-1182.0,0.0002989,120]
[341326610,1730806137559,-356.77543,0.00029973,120]
[341326611,1730806137601,-500.0,0.00029973,120]
[341326612,1730806137807,-205.529246,0.00029973,120]
[341326613,1730806137846,-5000.0,0.0003,60]
[341326614,1730806137895,-209.0,0.0003013,30]
[341326615,1730806137940,-614.33892143,0.00030136,30]
[341326616,1730806138149,-266.52372968,0.00030136,30]
[341326617,1730806138458,-185.0,0.00030137,120]
[341326618,1730806138500,-1000.0,0.00030369,30]
[341326619,1730806138540,-209.0,0.0003075,30]
[341326620,1730806138582,-480.0,0.00031,120]
[341326621,1730806138622,-500.0,0.00031,30]
[341326622,1730806138663,-209.0,0.0003138,30]
[341326623,1730806138703,-1000.0,0.00031739,30]
[341326624,1730806138746,-460.0,0.00032,120]
[341326625,1730806138786,-209.0,0.00032,30]
[341326626,1730806138826,-500.0,0.000321,30]
[341326627,1730806138866,-532.45964944,0.000321,30]
[341326628,1730806138904,-515.09296543,0.000321,30]
[341326629,1730806138945,-530.56192374,0.000321,30]
[341326630,1730806138985,-500.0,0.000321,30]
[341326631,1730806139024,-500.0,0.000321,30]
[341326632,1730806139064,-500.0,0.000321,30]
[341326633,1730806139106,-500.0,0.000321,30]
[341326634,1730806139146,-525.11129099,0.000321,30]
[341326635,1730806139186,-542.1508305,0.000321,30]
[341326636,1730806139226,-500.0,0.000321,30]
[341326637,1730806139266,-500.0,0.000321,30]
[341326638,1730806139307,-500.0,0.000321,30]
[341326639,1730806139347,-500.0,0.000321,30]
[341326640,1730806139387,-500.0,0.000321,30]
[341326641,1730806139433,-502.69956042,0.000321,30]
[341326642,1730806139475,-1649.88,0.00032876,120]
[341326643,1730806139519,-2000.0,0.00032876,120]
[341326644,1730806139558,-2000.0,0.00032876,120]
[341326645,1730806139601,-2110.93048303,0.00032876,120]
[341326646,1730806139643,-158.22,0.00032995,120]
[341326647,1730806139685,-1000.0,0.00033109,30]
[341326648,1730806139726,-1649.88,0.0003315,120]
[341326649,1730806139768,-1649.88,0.00033424,120]
[341326650,1730806139810,-1649.88,0.00033698,120]
[341326651,1730806139853,-518.79,0.000338,31]
[341326652,1730806139895,-518.79,0.000338,31]
[341326653,1730806140116,-518.79,0.000338,31]
[341326654,1730806140160,-518.79,0.000338,31]
[341326655,1730806140204,-518.79,0.000338,31]
[341326656,1730806140250,-518.79,0.000338,31]
[341326657,1730806140296,-518.79,0.000338,31]
[341326658,1730806140342,-518.79,0.000338,31]
[341326659,1730806140390,-518.79,0.000338,31]
[341326660,1730806140434,-518.79,0.000338,31]
[341326661,1730806140480,-518.79,0.000338,31]
[341326662,1730806140526,-518.79,0.000338,31]
[341326663,1730806140567,-1649.88,0.00033972,120]
[341326664,1730806140612,-763.2836041,0.00034,35]
[341326665,1730806140653,-440.0,0.00034,120]
[341326666,1730806140693,-1649.88,0.00034246,120]
[341326667,1730806140732,-200.0,0.0003428,32]
[341326668,1730806140774,-1000.0,0.00034479,30]
[341326669,1730806140814,-1649.88,0.0003452,120]
[341326670,1730806140854,-278.281828,0.00034521,120]
[341326671,1730806140895,-500.0,0.00034521,120]
[341326672,1730806140940,-1649.88,0.00034794,120]
[341326673,1730806140979,-999.0,0.00034849,120]
[341326674,1730806141020,-2600.0,0.00034981,60]
[341326675,1730806141060,-213.25673592,0.00035,30]
[341326676,1730806141101,-1800.0,0.00035,36]
[341326677,1730806141140,-1467.282245,0.00035,31]
[341326678,1730806141182,-151.0,0.00035014,120]
[341326679,1730806141222,-1649.88,0.00035068,120]
[341326680,1730806141262,-1649.88,0.00035342,120]
[341326681,1730806141304,-2600.0,0.00035529,60]
[341326682,1730806141344,-1649.88,0.00035616,120]
[341326683,1730806141387,-1055.77,0.00035616,120]
[341326684,1730806141428,-2188.79,0.00035616,120]
[341326685,1730806141469,-2188.79,0.00035616,120]
[341326686,1730806141510,-2188.79,0.00035616,120]
[341326687,1730806141552,-2188.79,0.00035616,120]
[341326688,1730806141595,-2188.79,0.00035616,120]
[341326689,1730806141636,-2188.79,0.00035616,120]
[341326690,1730806141681,-2188.79,0.00035616,120]
[341326691,1730806141722,-2188.79,0.00035616,120]
[341326692,1730806141765,-2188.79,0.00035616,120]
[341326693,1730806141807,-2188.79,0.00035616,120]
[341326694,1730806141849,-2188.79,0.00035616,120]
[341326695,1730806141891,-2188.79,0.00035616,120]
[341326696,1730806141933,-2188.79,0.00035616,120]
[341326697,1730806141975,-2188.79,0.00035616,120]
[341326698,1730806142017,-2188.79,0.00035616,120]
[341326699,1730806142058,-2188.79,0.00035616,120]
[341326700,1730806142099,-2188.79,0.00035616,120]
[341326701,1730806142142,-2188.79,0.00035616,120]
[341326702,1730806142184,-2188.79,0.00035616,120]
[341326703,1730806142227,-2188.79,0.00035616,120]
[341326704,1730806142268,-2188.79,0.00035616,120]
[341326705,1730806142310,-2188.79,0.00035616,120]
[341326706,1730806142352,-2188.79,0.00035616,120]
[341326707,1730806142395,-2188.98637151,0.00035616,120]
[341326708,1730806142444,-1000.0,0.00035849,120]
[341326709,1730806142486,-500.0,0.00035854,120]
[341326710,1730806142526,-1649.88,0.0003589,120]
[341326711,1730806142565,-698.01,0.000359,30]
[341326712,1730806142609,-1800.0,0.00036,37]
[341326713,1730806142648,-2600.0,0.00036077,60]
[341326714,1730806142686,-500.0,0.00036077,60]
[341326715,1730806142724,-1649.88,0.00036164,120]
[341326716,1730806142762,-698.01,0.000362,30]
[341326717,1730806142800,-297.0,0.0003625,36]
[341326718,1730806142839,-430.0,0.000363,120]
[341326719,1730806142881,-518.79,0.000363,31]
[341326720,1730806142922,-518.79,0.000363,31]
[341326721,1730806142964,-518.79,0.000363,31]
[341326722,1730806143005,-518.79,0.000363,31]
[341326723,1730806143046,-518.79,0.000363,31]
[341326724,1730806143089,-518.79,0.000363,31]
[341326725,1730806143134,-518.79,0.000363,31]
[341326726,1730806143179,-518.79,0.000363,31]
[341326727,1730806143224,-518.79,0.000363,31]
[341326728,1730806143268,-518.79,0.000363,31]
[341326729,1730806143311,-518.79,0.000363,31]
[341326730,1730806143356,-518.79,0.000363,31]
[341326731,1730806143402,-518.79,0.000363,31]
[341326732,1730806143447,-518.79,0.000363,31]
[341326733,1730806143494,-518.79,0.000363,31]
[341326734,1730806143540,-518.79,0.000363,31]
[341326735,1730806143588,-518.79,0.000363,31]
[341326736,1730806143636,-518.79,0.000363,31]
[341326737,1730806143694,-518.79,0.000363,31]
[341326738,1730806143898,-518.79,0.000363,31]
[341326739,1730806143944,-518.79,0.000363,31]
[341326740,1730806143989,-518.79,0.000363,31]
[341326741,1730806144035,-518.79,0.000363,31]
[341326742,1730806144081,-518.79,0.000363,31]
[341326743,1730806144125,-1055.77,0.00036301,120]
[341326744,1730806144166,-1649.88,0.00036438,120]
[341326745,1730806144211,-2600.0,0.00036625,60]
[341326746,1730806144253,-1649.88,0.00036712,120]
[341326747,1730806144294,-1000.0,0.00036986,89]
[341326748,1730806144340,-1000.0,0.00036986,89]
[341326749,1730806144383,-1000.0,0.00036986,89]
[341326750,1730806144425,-1000.0,0.00036986,89]
[341326751,1730806144466,-1000.0,0.00036986,89]
[341326752,1730806144508,-1000.0,0.00036986,89]
[341326753,1730806144550,-1000.0,0.00036986,89]
[341326754,1730806144594,-1000.0,0.00036986,89]
[341326755,1730806144638,-1000.0,0.00036986,89]
[341326756,1730806144681,-1000.0,0.00036986,89]
[341326757,1730806144722,-1000.0,0.00036986,89]
[341326758,1730806144764,-1000.0,0.00036986,89]
[341326759,1730806144807,-927.1824321,0.00036986,89]
[341326760,1730806144851,-1649.88,0.00036986,120]
[341326761,1730806144894,-1055.77,0.00036986,120]
[341326762,1730806144937,-9945.00269677,0.00037,30]
[341326763,1730806144977,-500.0,0.00037,120]
[341326764,1730806145019,-1800.0,0.00037,38]
[341326765,1730806145060,-100818.01145637,0.00037,120]
[341326766,1730806145101,-500.0,0.00037173,60]
[341326767,1730806145143,-500.0,0.00037173,60]
[341326768,1730806145184,-1400.0,0.00037173,60]
[341326769,1730806145227,-500.0,0.00037187,120]
[341326770,1730806145269,-759.9438476,0.000372,103]
[341326771,1730806145309,-495.10380556,0.00037218,120]
[341326772,1730806145350,-1649.88,0.0003726,120]
[341326773,1730806145390,-1362.67252948,0.0003729,120]
[341326774,1730806145430,-698.01,0.000373,30]
[341326775,1730806145469,-1649.88,0.00037534,120]
[341326776,1730806145510,-1055.77,0.00037671,120]
[341326777,1730806145550,-2600.0,0.00037721,60]
[341326778,1730806145588,-500.0,0.00037721,60]
[341326779,1730806145628,-1400.0,0.00037721,60]
[341326780,1730806145667,-1649.88,0.00037808,120]
[341326781,1730806145708,-158.22,0.00037904,120]
[341326782,1730806145748,-1800.0,0.00038,39]
[341326783,1730806145788,-344.21519441,0.00038,120]
[341326784,1730806145830,-624.06216677,0.00038,120]
[341326785,1730806145870,-442.430233,0.00038,30]
[341326786,1730806145909,-1649.88,0.00038082,120]
[341326787,1730806145950,-500.0,0.00038269,60]
[341326788,1730806145988,-1400.0,0.00038269,60]
[341326789,1730806146028,-500.0,0.00038269,60]
[341326790,1730806146067,-186.0,0.0003833,30]
[341326791,1730806146107,-186.0,0.0003833,30]
[341326792,1730806146146,-186.0,0.0003834,30]
[341326793,1730806146185,-186.0,0.0003834,30]
[341326794,1730806146225,-186.0,0.0003834,30]
[341326795,1730806146264,-188.11,0.0003834,30]
[341326796,1730806146306,-186.0,0.0003835,30]
[341326797,1730806146345,-186.0,0.0003835,30]
[341326798,1730806146386,-186.0,0.0003835,30]
[341326799,1730806146425,-186.0,0.0003835,30]
[341326800,1730806146464,-150.0,0.00038355,30]
[341326801,1730806146503,-1649.88,0.00038356,120]
[341326802,1730806146545,-1055.77,0.00038356,120]
[341326803,1730806146586,-150.5,0.0003837,120]
[341326804,1730806146625,-155.01,0.0003837,120]
[341326805,1730806146667,-150.5,0.0003838,120]
[341326806,1730806146708,-200.39,0.0003838,120]
[341326807,1730806146748,-150.5,0.0003838,120]
[341326808,1730806146788,-150.5,0.0003839,120]
[341326809,1730806146827,-150.5,0.0003839,120]
[341326810,1730806146868,-150.5,0.0003839,120]
[341326811,1730806146908,-400.0,0.000384,120]
[341326812,1730806146949,-150.0,0.00038492,30]
[341326813,1730806146989,-945.25750266,0.000385,120]
[341326814,1730806147034,-500.0,0.00038521,120]
[341326815,1730806147076,-999.56,0.0003856,30]
[341326816,1730806147117,-151.90637012,0.00038629,30]
[341326817,1730806147160,-1649.88,0.0003863,120]
[341326818,1730806147204,-698.01,0.000387,30]
[341326819,1730806147246,-326.61394506,0.000388,30]
[341326820,1730806147290,-518.79,0.000388,31]
[341326821,1730806147335,-518.79,0.000388,31]
[341326822,1730806147380,-518.79,0.000388,31]
[341326823,1730806147425,-518.79,0.000388,31]
[341326824,1730806147468,-518.79,0.000388,31]
[341326825,1730806147513,-518.79,0.000388,31]